{"text_format":"3","workbook":"xlsx","n_sheets":1,"sheets":["งบประมาณค่าใช้จ่าย"],"not_rendered":{"charts":2,"defined_names":3},"read":"whole","date_system":"1900"}

{"sheet":"งบประมาณค่าใช้จ่าย","index":0,"n_rows":47,"n_cols":7,"rows_kept":47,"merged":[[0,1,0,4],[0,5,0,6],[16,1,16,6],[47,1,47,6]]}
[null,"งบประมาณค่าใช้จ่าย",{"$nulls":3},"CONTOSO, 2555"]
[]
[]
[null," งบประมาณบุคลากร"]
{"$rows_empty":7}
[null,"สถานะ","บุคลากร","งบประมาณ","ใช้จริง","ผลต่าง (฿)","ผลต่าง (%)"]
[null,{"$f":"IFERROR(ตารางค่าใช้จ่ายบุคคล[[#This Row],[ใช้จริง]]/ตารางค่าใช้จ่ายบุคคล[[#This Row],[งบประมาณ]],\"\")","v":{"v":1.13,"d":"$1.13"}},"สำนักงาน",{"v":500,"d":"฿500.00"},{"v":565,"d":"฿565.00"},{"$f":"ตารางค่าใช้จ่ายบุคคล[[#This Row],[งบประมาณ]]-ตารางค่าใช้จ่ายบุคคล[[#This Row],[ใช้จริง]]","v":{"v":-65,"d":"-฿65.00"}},{"$f":"IFERROR(ตารางค่าใช้จ่ายบุคคล[ผลต่าง (฿)]/ตารางค่าใช้จ่ายบุคคล[งบประมาณ],\"\")","v":{"v":-0.13,"d":"-13%"}}]
[null,{"$f":"IFERROR(ตารางค่าใช้จ่ายบุคคล[[#This Row],[ใช้จริง]]/ตารางค่าใช้จ่ายบุคคล[[#This Row],[งบประมาณ]],\"\")","v":{"v":1.2,"d":"$1.20"}},"คลังสินค้า",{"v":125,"d":"฿125.00"},{"v":150,"d":"฿150.00"},{"$f":"ตารางค่าใช้จ่ายบุคคล[[#This Row],[งบประมาณ]]-ตารางค่าใช้จ่ายบุคคล[[#This Row],[ใช้จริง]]","v":{"v":-25,"d":"-฿25.00"}},{"$f":"IFERROR(ตารางค่าใช้จ่ายบุคคล[ผลต่าง (฿)]/ตารางค่าใช้จ่ายบุคคล[งบประมาณ],\"\")","v":{"v":-0.2,"d":"-20%"}}]
[null,{"$f":"IFERROR(ตารางค่าใช้จ่ายบุคคล[[#This Row],[ใช้จริง]]/ตารางค่าใช้จ่ายบุคคล[[#This Row],[งบประมาณ]],\"\")","v":{"v":1,"d":"$1.00"}},"พนักงานขาย",{"v":100,"d":"฿100.00"},{"v":100,"d":"฿100.00"},{"$f":"ตารางค่าใช้จ่ายบุคคล[[#This Row],[งบประมาณ]]-ตารางค่าใช้จ่ายบุคคล[[#This Row],[ใช้จริง]]","v":{"v":0,"d":"฿0.00"}},{"$f":"IFERROR(ตารางค่าใช้จ่ายบุคคล[ผลต่าง (฿)]/ตารางค่าใช้จ่ายบุคคล[งบประมาณ],\"\")","v":{"v":0,"d":"0%"}}]
[null,{"$f":"IFERROR(ตารางค่าใช้จ่ายบุคคล[[#This Row],[ใช้จริง]]/ตารางค่าใช้จ่ายบุคคล[[#This Row],[งบประมาณ]],\"\")","v":{"v":0.9,"d":"$0.90"}},"อื่นๆ",{"v":100,"d":"฿100.00"},{"v":90,"d":"฿90.00"},{"$f":"ตารางค่าใช้จ่ายบุคคล[[#This Row],[งบประมาณ]]-ตารางค่าใช้จ่ายบุคคล[[#This Row],[ใช้จริง]]","v":{"v":10,"d":"฿10.00"}},{"$f":"IFERROR(ตารางค่าใช้จ่ายบุคคล[ผลต่าง (฿)]/ตารางค่าใช้จ่ายบุคคล[งบประมาณ],\"\")","v":{"v":0.1,"d":"10%"}}]
[]
[]
[null," งบประมาณการดำเนินงาน"]
{"$rows_empty":7}
[null,"สถานะ","การดำเนินงาน","งบประมาณ","ใช้จริง","ผลต่าง (฿)","ผลต่าง (%)"]
[null,{"$f":"IFERROR(ตารางค่าใช้จ่ายการดำเนินงาน[[#This Row],[ใช้จริง]]/ตารางค่าใช้จ่ายการดำเนินงาน[[#This Row],[งบประมาณ]],\"\")","v":{"v":0.98,"d":"$0.98"}},"การโฆษณา",{"v":250,"d":"฿250.00"},{"v":245,"d":"฿245.00"},{"$f":"ตารางค่าใช้จ่ายการดำเนินงาน[[#This Row],[งบประมาณ]]-ตารางค่าใช้จ่ายการดำเนินงาน[[#This Row],[ใช้จริง]]","v":{"v":5,"d":"฿5.00"}},{"$f":"IFERROR(ตารางค่าใช้จ่ายการดำเนินงาน[[#This Row],[ผลต่าง (฿)]]/ตารางค่าใช้จ่ายการดำเนินงาน[[#This Row],[งบประมาณ]],\"\")","v":{"v":0.02,"d":"2%"}}]
[null,{"$f":"IFERROR(ตารางค่าใช้จ่ายการดำเนินงาน[[#This Row],[ใช้จริง]]/ตารางค่าใช้จ่ายการดำเนินงาน[[#This Row],[งบประมาณ]],\"\")","v":{"v":1.2,"d":"$1.20"}},"หนี้",{"v":125,"d":"฿125.00"},{"v":150,"d":"฿150.00"},{"$f":"ตารางค่าใช้จ่ายการดำเนินงาน[[#This Row],[งบประมาณ]]-ตารางค่าใช้จ่ายการดำเนินงาน[[#This Row],[ใช้จริง]]","v":{"v":-25,"d":"-฿25.00"}},{"$f":"IFERROR(ตารางค่าใช้จ่ายการดำเนินงาน[[#This Row],[ผลต่าง (฿)]]/ตารางค่าใช้จ่ายการดำเนินงาน[[#This Row],[งบประมาณ]],\"\")","v":{"v":-0.2,"d":"-20%"}}]
[null,{"$f":"IFERROR(ตารางค่าใช้จ่ายการดำเนินงาน[[#This Row],[ใช้จริง]]/ตารางค่าใช้จ่ายการดำเนินงาน[[#This Row],[งบประมาณ]],\"\")","v":{"v":1,"d":"$1.00"}},"สวัสดิการ",{"v":100,"d":"฿100.00"},{"v":100,"d":"฿100.00"},{"$f":"ตารางค่าใช้จ่ายการดำเนินงาน[[#This Row],[งบประมาณ]]-ตารางค่าใช้จ่ายการดำเนินงาน[[#This Row],[ใช้จริง]]","v":{"v":0,"d":"฿0.00"}},{"$f":"IFERROR(ตารางค่าใช้จ่ายการดำเนินงาน[[#This Row],[ผลต่าง (฿)]]/ตารางค่าใช้จ่ายการดำเนินงาน[[#This Row],[งบประมาณ]],\"\")","v":{"v":0,"d":"0%"}}]
[null,{"$f":"IFERROR(ตารางค่าใช้จ่ายการดำเนินงาน[[#This Row],[ใช้จริง]]/ตารางค่าใช้จ่ายการดำเนินงาน[[#This Row],[งบประมาณ]],\"\")","v":{"v":0.9,"d":"$0.90"}},"ของใช้",{"v":100,"d":"฿100.00"},{"v":90,"d":"฿90.00"},{"$f":"ตารางค่าใช้จ่ายการดำเนินงาน[[#This Row],[งบประมาณ]]-ตารางค่าใช้จ่ายการดำเนินงาน[[#This Row],[ใช้จริง]]","v":{"v":10,"d":"฿10.00"}},{"$f":"IFERROR(ตารางค่าใช้จ่ายการดำเนินงาน[[#This Row],[ผลต่าง (฿)]]/ตารางค่าใช้จ่ายการดำเนินงาน[[#This Row],[งบประมาณ]],\"\")","v":{"v":0.1,"d":"10%"}}]
[null,{"$f":"IFERROR(ตารางค่าใช้จ่ายการดำเนินงาน[[#This Row],[ใช้จริง]]/ตารางค่าใช้จ่ายการดำเนินงาน[[#This Row],[งบประมาณ]],\"\")","v":""},"ค่าไปรษณียากร",null,null,{"$f":"ตารางค่าใช้จ่ายการดำเนินงาน[[#This Row],[งบประมาณ]]-ตารางค่าใช้จ่ายการดำเนินงาน[[#This Row],[ใช้จริง]]","v":{"v":0,"d":"฿0.00"}},{"$f":"IFERROR(ตารางค่าใช้จ่ายการดำเนินงาน[[#This Row],[ผลต่าง (฿)]]/ตารางค่าใช้จ่ายการดำเนินงาน[[#This Row],[งบประมาณ]],\"\")","v":""}]
[null,{"$f":"IFERROR(ตารางค่าใช้จ่ายการดำเนินงาน[[#This Row],[ใช้จริง]]/ตารางค่าใช้จ่ายการดำเนินงาน[[#This Row],[งบประมาณ]],\"\")","v":""},"ค่าเช่าหรือเช่าซื้อ",null,null,{"$f":"ตารางค่าใช้จ่ายการดำเนินงาน[[#This Row],[งบประมาณ]]-ตารางค่าใช้จ่ายการดำเนินงาน[[#This Row],[ใช้จริง]]","v":{"v":0,"d":"฿0.00"}},{"$f":"IFERROR(ตารางค่าใช้จ่ายการดำเนินงาน[[#This Row],[ผลต่าง (฿)]]/ตารางค่าใช้จ่ายการดำเนินงาน[[#This Row],[งบประมาณ]],\"\")","v":""}]
[null,{"$f":"IFERROR(ตารางค่าใช้จ่ายการดำเนินงาน[[#This Row],[ใช้จริง]]/ตารางค่าใช้จ่ายการดำเนินงาน[[#This Row],[งบประมาณ]],\"\")","v":""},"ค่าใช้จ่ายการขาย",null,null,{"$f":"ตารางค่าใช้จ่ายการดำเนินงาน[[#This Row],[งบประมาณ]]-ตารางค่าใช้จ่ายการดำเนินงาน[[#This Row],[ใช้จริง]]","v":{"v":0,"d":"฿0.00"}},{"$f":"IFERROR(ตารางค่าใช้จ่ายการดำเนินงาน[[#This Row],[ผลต่าง (฿)]]/ตารางค่าใช้จ่ายการดำเนินงาน[[#This Row],[งบประมาณ]],\"\")","v":""}]
[null,{"$f":"IFERROR(ตารางค่าใช้จ่ายการดำเนินงาน[[#This Row],[ใช้จริง]]/ตารางค่าใช้จ่ายการดำเนินงาน[[#This Row],[งบประมาณ]],\"\")","v":""},"ภาษี",null,null,{"$f":"ตารางค่าใช้จ่ายการดำเนินงาน[[#This Row],[งบประมาณ]]-ตารางค่าใช้จ่ายการดำเนินงาน[[#This Row],[ใช้จริง]]","v":{"v":0,"d":"฿0.00"}},{"$f":"IFERROR(ตารางค่าใช้จ่ายการดำเนินงาน[[#This Row],[ผลต่าง (฿)]]/ตารางค่าใช้จ่ายการดำเนินงาน[[#This Row],[งบประมาณ]],\"\")","v":""}]
[null,{"$f":"IFERROR(ตารางค่าใช้จ่ายการดำเนินงาน[[#This Row],[ใช้จริง]]/ตารางค่าใช้จ่ายการดำเนินงาน[[#This Row],[งบประมาณ]],\"\")","v":""},"สาธารณูปโภค",null,null,{"$f":"ตารางค่าใช้จ่ายการดำเนินงาน[[#This Row],[งบประมาณ]]-ตารางค่าใช้จ่ายการดำเนินงาน[[#This Row],[ใช้จริง]]","v":{"v":0,"d":"฿0.00"}},{"$f":"IFERROR(ตารางค่าใช้จ่ายการดำเนินงาน[[#This Row],[ผลต่าง (฿)]]/ตารางค่าใช้จ่ายการดำเนินงาน[[#This Row],[งบประมาณ]],\"\")","v":""}]
[null,{"$f":"IFERROR(ตารางค่าใช้จ่ายการดำเนินงาน[[#This Row],[ใช้จริง]]/ตารางค่าใช้จ่ายการดำเนินงาน[[#This Row],[งบประมาณ]],\"\")","v":""},"อื่นๆ",null,null,{"$f":"ตารางค่าใช้จ่ายการดำเนินงาน[[#This Row],[งบประมาณ]]-ตารางค่าใช้จ่ายการดำเนินงาน[[#This Row],[ใช้จริง]]","v":{"v":0,"d":"฿0.00"}},{"$f":"IFERROR(ตารางค่าใช้จ่ายการดำเนินงาน[[#This Row],[ผลต่าง (฿)]]/ตารางค่าใช้จ่ายการดำเนินงาน[[#This Row],[งบประมาณ]],\"\")","v":""}]
[null,{"$f":"IFERROR(ตารางค่าใช้จ่ายการดำเนินงาน[[#This Row],[ใช้จริง]]/ตารางค่าใช้จ่ายการดำเนินงาน[[#This Row],[งบประมาณ]],\"\")","v":""},"ค่าประกัน",null,null,{"$f":"ตารางค่าใช้จ่ายการดำเนินงาน[[#This Row],[งบประมาณ]]-ตารางค่าใช้จ่ายการดำเนินงาน[[#This Row],[ใช้จริง]]","v":{"v":0,"d":"฿0.00"}},{"$f":"IFERROR(ตารางค่าใช้จ่ายการดำเนินงาน[[#This Row],[ผลต่าง (฿)]]/ตารางค่าใช้จ่ายการดำเนินงาน[[#This Row],[งบประมาณ]],\"\")","v":""}]
[null,{"$f":"IFERROR(ตารางค่าใช้จ่ายการดำเนินงาน[[#This Row],[ใช้จริง]]/ตารางค่าใช้จ่ายการดำเนินงาน[[#This Row],[งบประมาณ]],\"\")","v":""},"ดอกเบี้ย",null,null,{"$f":"ตารางค่าใช้จ่ายการดำเนินงาน[[#This Row],[งบประมาณ]]-ตารางค่าใช้จ่ายการดำเนินงาน[[#This Row],[ใช้จริง]]","v":{"v":0,"d":"฿0.00"}},{"$f":"IFERROR(ตารางค่าใช้จ่ายการดำเนินงาน[[#This Row],[ผลต่าง (฿)]]/ตารางค่าใช้จ่ายการดำเนินงาน[[#This Row],[งบประมาณ]],\"\")","v":""}]
[null,{"$f":"IFERROR(ตารางค่าใช้จ่ายการดำเนินงาน[[#This Row],[ใช้จริง]]/ตารางค่าใช้จ่ายการดำเนินงาน[[#This Row],[งบประมาณ]],\"\")","v":""},"โทรศัพท์",null,null,{"$f":"ตารางค่าใช้จ่ายการดำเนินงาน[[#This Row],[งบประมาณ]]-ตารางค่าใช้จ่ายการดำเนินงาน[[#This Row],[ใช้จริง]]","v":{"v":0,"d":"฿0.00"}},{"$f":"IFERROR(ตารางค่าใช้จ่ายการดำเนินงาน[[#This Row],[ผลต่าง (฿)]]/ตารางค่าใช้จ่ายการดำเนินงาน[[#This Row],[งบประมาณ]],\"\")","v":""}]
[null,{"$f":"IFERROR(ตารางค่าใช้จ่ายการดำเนินงาน[[#This Row],[ใช้จริง]]/ตารางค่าใช้จ่ายการดำเนินงาน[[#This Row],[งบประมาณ]],\"\")","v":""},"ค่าบำรุงรักษาและซ่อมแซม",null,null,{"$f":"ตารางค่าใช้จ่ายการดำเนินงาน[[#This Row],[งบประมาณ]]-ตารางค่าใช้จ่ายการดำเนินงาน[[#This Row],[ใช้จริง]]","v":{"v":0,"d":"฿0.00"}},{"$f":"IFERROR(ตารางค่าใช้จ่ายการดำเนินงาน[[#This Row],[ผลต่าง (฿)]]/ตารางค่าใช้จ่ายการดำเนินงาน[[#This Row],[งบประมาณ]],\"\")","v":""}]
[null,{"$f":"IFERROR(ตารางค่าใช้จ่ายการดำเนินงาน[[#This Row],[ใช้จริง]]/ตารางค่าใช้จ่ายการดำเนินงาน[[#This Row],[งบประมาณ]],\"\")","v":""},"ค่าธรรมเนียมทางกฎหมาย",null,null,{"$f":"ตารางค่าใช้จ่ายการดำเนินงาน[[#This Row],[งบประมาณ]]-ตารางค่าใช้จ่ายการดำเนินงาน[[#This Row],[ใช้จริง]]","v":{"v":0,"d":"฿0.00"}},{"$f":"IFERROR(ตารางค่าใช้จ่ายการดำเนินงาน[[#This Row],[ผลต่าง (฿)]]/ตารางค่าใช้จ่ายการดำเนินงาน[[#This Row],[งบประมาณ]],\"\")","v":""}]
[null,{"$f":"IFERROR(ตารางค่าใช้จ่ายการดำเนินงาน[[#This Row],[ใช้จริง]]/ตารางค่าใช้จ่ายการดำเนินงาน[[#This Row],[งบประมาณ]],\"\")","v":""},"ค่าเสื่อมราคา",null,null,{"$f":"ตารางค่าใช้จ่ายการดำเนินงาน[[#This Row],[งบประมาณ]]-ตารางค่าใช้จ่ายการดำเนินงาน[[#This Row],[ใช้จริง]]","v":{"v":0,"d":"฿0.00"}},{"$f":"IFERROR(ตารางค่าใช้จ่ายการดำเนินงาน[[#This Row],[ผลต่าง (฿)]]/ตารางค่าใช้จ่ายการดำเนินงาน[[#This Row],[งบประมาณ]],\"\")","v":""}]
[null,{"$f":"IFERROR(ตารางค่าใช้จ่ายการดำเนินงาน[[#This Row],[ใช้จริง]]/ตารางค่าใช้จ่ายการดำเนินงาน[[#This Row],[งบประมาณ]],\"\")","v":""},"ค่าขนส่ง",null,null,{"$f":"ตารางค่าใช้จ่ายการดำเนินงาน[[#This Row],[งบประมาณ]]-ตารางค่าใช้จ่ายการดำเนินงาน[[#This Row],[ใช้จริง]]","v":{"v":0,"d":"฿0.00"}},{"$f":"IFERROR(ตารางค่าใช้จ่ายการดำเนินงาน[[#This Row],[ผลต่าง (฿)]]/ตารางค่าใช้จ่ายการดำเนินงาน[[#This Row],[งบประมาณ]],\"\")","v":""}]
[null,{"$f":"IFERROR(ตารางค่าใช้จ่ายการดำเนินงาน[[#This Row],[ใช้จริง]]/ตารางค่าใช้จ่ายการดำเนินงาน[[#This Row],[งบประมาณ]],\"\")","v":""},"ค่าจัดเก็บ",null,null,{"$f":"ตารางค่าใช้จ่ายการดำเนินงาน[[#This Row],[งบประมาณ]]-ตารางค่าใช้จ่ายการดำเนินงาน[[#This Row],[ใช้จริง]]","v":{"v":0,"d":"฿0.00"}},{"$f":"IFERROR(ตารางค่าใช้จ่ายการดำเนินงาน[[#This Row],[ผลต่าง (฿)]]/ตารางค่าใช้จ่ายการดำเนินงาน[[#This Row],[งบประมาณ]],\"\")","v":""}]
[null,{"$f":"IFERROR(ตารางค่าใช้จ่ายการดำเนินงาน[[#This Row],[ใช้จริง]]/ตารางค่าใช้จ่ายการดำเนินงาน[[#This Row],[งบประมาณ]],\"\")","v":""},"อื่นๆ",null,null,{"$f":"ตารางค่าใช้จ่ายการดำเนินงาน[[#This Row],[งบประมาณ]]-ตารางค่าใช้จ่ายการดำเนินงาน[[#This Row],[ใช้จริง]]","v":{"v":0,"d":"฿0.00"}},{"$f":"IFERROR(ตารางค่าใช้จ่ายการดำเนินงาน[[#This Row],[ผลต่าง (฿)]]/ตารางค่าใช้จ่ายการดำเนินงาน[[#This Row],[งบประมาณ]],\"\")","v":""}]
[null,null,"ค่าใช้จ่ายรวม",{"$f":"SUBTOTAL(109,ตารางค่าใช้จ่ายการดำเนินงาน[งบประมาณ],ตารางค่าใช้จ่ายบุคคล[งบประมาณ])","v":{"v":1400,"d":"฿1,400.00"}},{"$f":"SUBTOTAL(109,ตารางค่าใช้จ่ายการดำเนินงาน[ใช้จริง],ตารางค่าใช้จ่ายบุคคล[ใช้จริง])","v":{"v":1490,"d":"฿1,490.00"}},{"$f":"SUBTOTAL(109,ตารางค่าใช้จ่ายการดำเนินงาน[ผลต่าง (฿)],ตารางค่าใช้จ่ายบุคคล[ผลต่าง (฿)])","v":{"v":-90,"d":"-฿90.00"}},{"$f":"IFERROR(SUM(ตารางค่าใช้จ่ายการดำเนินงาน[[#Totals],[ผลต่าง (฿)]]/ตารางค่าใช้จ่ายการดำเนินงาน[[#Totals],[งบประมาณ]]),\"\")","v":{"v":-0.06428571428571428,"d":"-6%"}}]